fUSD/lending_fUSD_20250331
["ID","MTS","AMOUNT","RATE_DAILY","PERIOD"]
[356928713,1743435094412,-1735.57,0.00051505,100]
[356928714,1743435094423,-500.0,0.00051505,120]
[356928715,1743435094437,-500.0,0.00051505,120]
[356928716,1743435094448,-1542.89,0.00051505,120]
[356928717,1743435094458,-639.37,0.00051505,120]
[356928718,1743435094468,-500.0,0.00051505,120]
[356928719,1743435094481,-500.0,0.00051505,120]
[356928720,1743435094491,-5724.5,0.00051505,7]
[356928721,1743435094500,-405.76,0.00051505,120]
[356928722,1743435094511,-500.0,0.00051505,120]
[356928723,1743435094522,-500.0,0.00051505,120]
[356928724,1743435094532,-3112.45,0.00051505,120]
[356928725,1743435094542,-500.0,0.00051505,120]
[356928726,1743435094553,-538.3,0.00051505,120]
[356928727,1743435094562,-500.0,0.00051505,120]
[356928728,1743435094573,-652.93,0.00051505,120]
[356928729,1743435094583,-1485.04,0.00051505,120]
[356928730,1743435094594,-726.02,0.00051505,120]
[356928731,1743435094604,-2237.04,0.00051505,120]
[356928732,1743435094614,-500.0,0.00051505,120]
[356928733,1743435094625,-1396.37,0.00051505,120]
[356928734,1743435094635,-386.16,0.00051505,120]
[356928735,1743435094646,-521.46,0.00051505,120]
[356928736,1743435094656,-500.0,0.00051505,120]
[356928737,1743435094667,-1608.33,0.00051505,120]
[356928738,1743435094677,-2168.3,0.00051505,120]
[356928739,1743435094687,-674.92,0.00051505,120]
[356928740,1743435094697,-1026.8,0.00051506,120]
[356928741,1743435094707,-524.1,0.00051506,120]
[356928742,1743435094718,-1197.78,0.00051506,120]
[356928743,1743435094728,-624.71,0.00051506,120]
[356928744,1743435094738,-1078.91,0.00051506,120]
[356928745,1743435094747,-1135.55,0.00051506,120]
[356928746,1743435094758,-571.78,0.00051506,120]
[356928747,1743435094768,-1494.51,0.00051506,120]
[356928748,1743435094778,-559.28761901,0.00051506,120]
[356928749,1743435094789,-724.15,0.00051506,120]
[356928750,1743435094799,-573.06,0.00051506,120]
[356928751,1743435094808,-500.0,0.00051506,120]
[356928752,1743435094818,-500.0,0.00051506,120]
[356928753,1743435094828,-500.0,0.00051527,120]
[356928754,1743435094838,-3094.7,0.00051527,120]
[356928755,1743435094849,-321.52,0.0005168,120]
[356928756,1743435094859,-1314.72133107,0.00051779,120]
[356928757,1743435094869,-486.41,0.00051779,120]
[356928758,1743435094879,-500.0,0.00051779,120]
[356928759,1743435094890,-698.6,0.00051779,120]
[356928760,1743435094900,-413.9,0.00051779,120]
[356928761,1743435094910,-500.0,0.00051779,120]
[356928762,1743435094920,-500.0,0.00051779,120]
[356928763,1743435094929,-500.0,0.00051779,120]
[356928764,1743435094939,-500.0,0.00051779,120]
[356928765,1743435094949,-500.0,0.00051779,120]
[356928766,1743435094959,-500.0,0.00051779,120]
[356928767,1743435094969,-884.13,0.00051779,120]
[356928768,1743435094979,-709.47,0.00051779,120]
[356928769,1743435094988,-575.2,0.00051779,120]
[356928770,1743435094998,-500.0,0.00051779,120]
[356928771,1743435095009,-657.12,0.00051779,120]
[356928772,1743435095019,-1709.56,0.00051779,120]
[356928773,1743435095029,-966.72,0.00051779,120]
[356928774,1743435095039,-674.91,0.00051779,120]
[356928775,1743435095049,-186.4,0.00051779,120]
[356928776,1743435095059,-500.0,0.00051779,120]
[356928777,1743435095069,-679.34,0.00051779,120]
[356928778,1743435095079,-500.0,0.00051779,120]
[356928779,1743435095089,-500.0,0.00051779,120]
[356928780,1743435095099,-589.96,0.00051779,120]
[356928781,1743435095109,-553.96,0.00051779,120]
[356928782,1743435095118,-1077.21,0.00051779,120]
[356928783,1743435095129,-982.57,0.00051779,120]
[356928784,1743435095139,-640.8,0.00051779,120]
[356928785,1743435095149,-1735.57,0.00051779,100]
[356928786,1743435095159,-547.95,0.00051779,120]
[356928787,1743435095168,-500.0,0.00051779,120]
[356928788,1743435095178,-1542.89,0.00051779,120]
[356928789,1743435095187,-639.37,0.00051779,120]
[356928790,1743435095197,-500.0,0.00051779,120]
[356928791,1743435095207,-500.0,0.00051779,120]
[356928792,1743435095217,-5724.5,0.00051779,7]
[356928793,1743435095227,-590.76755576,0.00051779,120]
[356928794,1743435095238,-525.06504571,0.00051779,120]
[356928795,1743435095247,-3112.45,0.00051779,120]
[356928796,1743435095256,-500.0,0.00051779,120]
[356928797,1743435095266,-538.3,0.00051779,120]
[356928798,1743435095275,-500.0,0.00051779,120]
[356928799,1743435095285,-652.93,0.00051779,120]
[356928800,1743435095295,-1485.04,0.00051779,120]
[356928801,1743435095306,-726.02,0.00051779,120]
[356928802,1743435095316,-2237.04,0.00051779,120]
[356928803,1743435095325,-500.0,0.00051779,120]
[356928804,1743435095336,-1396.37,0.00051779,120]
[356928805,1743435095346,-521.46,0.00051779,120]
[356928806,1743435095356,-500.0,0.00051779,120]
[356928807,1743435095367,-1608.33,0.00051779,120]
[356928808,1743435095376,-2168.3,0.00051779,120]
[356928809,1743435095386,-674.92,0.00051779,120]
[356928810,1743435095395,-524.1,0.0005178,120]
[356928811,1743435095405,-1197.78,0.0005178,120]
[356928812,1743435095416,-624.71,0.0005178,120]
[356928813,1743435095425,-1078.91,0.0005178,120]
[356928814,1743435095441,-1135.55,0.0005178,120]
[356928815,1743435095451,-571.78,0.0005178,120]
[356928816,1743435095461,-1494.51,0.0005178,120]
[356928817,1743435095471,-724.15,0.0005178,120]
[356928818,1743435095483,-573.06,0.0005178,120]
[356928819,1743435095493,-197.04855255,0.0005178,120]
[356928820,1743435095503,-500.0,0.0005178,120]
[356928821,1743435095515,-500.0,0.00051801,120]
[356928822,1743435095525,-3094.7,0.00051801,120]
[356928823,1743435095535,-1000.0,0.0005186,20]
[356928824,1743435095545,-9770.69197051,0.00052,120]
[356928825,1743435095557,-500.0,0.00052053,28]
[356928826,1743435095567,-500.0,0.00052053,120]
[356928827,1743435095576,-698.6,0.00052053,120]
[356928828,1743435095586,-559.50799947,0.00052053,120]
[356928829,1743435095595,-500.0,0.00052053,120]
[356928830,1743435095605,-500.0,0.00052053,120]
[356928831,1743435095615,-500.0,0.00052053,120]
[356928832,1743435095624,-500.0,0.00052053,120]
[356928833,1743435095634,-417.7,0.00052053,120]
[356928834,1743435095644,-884.13,0.00052053,120]
[356928835,1743435095654,-709.47,0.00052053,120]
[356928836,1743435095664,-575.2,0.00052053,120]
[356928837,1743435095674,-500.0,0.00052053,120]
[356928838,1743435095684,-657.12,0.00052053,120]
[356928839,1743435095694,-1709.56,0.00052053,120]
[356928840,1743435095704,-966.72,0.00052053,120]
[356928841,1743435095714,-674.91,0.00052053,120]
[356928842,1743435095724,-500.0,0.00052053,120]
[356928843,1743435095734,-679.34,0.00052053,120]
[356928844,1743435095744,-500.0,0.00052053,120]
[356928845,1743435095754,-241.6,0.00052053,120]
[356928846,1743435095765,-589.96,0.00052053,120]
[356928847,1743435095774,-553.96,0.00052053,120]
[356928848,1743435095784,-1077.21,0.00052053,120]
[356928849,1743435095795,-982.57,0.00052053,120]
[356928850,1743435095808,-1735.57,0.00052053,100]
[356928851,1743435095818,-500.0,0.00052053,120]
[356928852,1743435095827,-1542.89,0.00052053,120]
[356928853,1743435095837,-639.37,0.00052053,120]
[356928854,1743435095847,-211.52983874,0.00052053,120]
[356928855,1743435095857,-500.0,0.00052053,120]
[356928856,1743435095867,-5724.5,0.00052053,7]
[356928857,1743435095876,-3112.45,0.00052053,120]
[356928858,1743435095886,-500.0,0.00052053,120]
[356928859,1743435095896,-538.3,0.00052053,120]
[356928860,1743435095905,-500.0,0.00052053,120]
[356928861,1743435095915,-652.93,0.00052053,120]
[356928862,1743435095924,-1485.04,0.00052053,120]
[356928863,1743435095935,-726.02,0.00052053,120]
[356928864,1743435095944,-2237.04,0.00052053,120]
[356928865,1743435095954,-506.49,0.00052053,120]
[356928866,1743435095964,-1396.37,0.00052053,120]
[356928867,1743435095974,-521.46,0.00052053,120]
[356928868,1743435095984,-500.0,0.00052053,120]
[356928869,1743435095994,-1608.33,0.00052053,120]
[356928870,1743435096003,-2168.3,0.00052053,120]
[356928871,1743435096014,-674.92,0.00052053,120]
[356928872,1743435096024,-524.1,0.00052054,120]
[356928873,1743435096034,-1197.78,0.00052054,120]
[356928874,1743435096044,-624.71,0.00052054,120]
[356928875,1743435096055,-1078.91,0.00052054,120]
[356928876,1743435096064,-1135.55,0.00052054,120]
[356928877,1743435096074,-571.78,0.00052054,120]
[356928878,1743435096085,-1494.51,0.00052054,120]
[356928879,1743435096094,-724.15,0.00052054,120]
[356928880,1743435096104,-573.06,0.00052054,120]
[356928881,1743435096114,-624.62,0.00052054,120]
[356928882,1743435096125,-500.0,0.00052075,120]
[356928883,1743435096135,-3094.7,0.00052075,120]
[356928884,1743435096145,-5574.45279034,0.00052144,15]
[356928885,1743435096155,-520.09,0.0005219,2]
[356928886,1743435096165,-480.41,0.00052299,8]
[356928887,1743435096174,-1026.8,0.00052318,120]
[356928888,1743435096184,-500.0,0.00052327,120]
[356928889,1743435096195,-698.6,0.00052327,120]
[356928890,1743435096204,-631.97448061,0.00052327,120]
[356928891,1743435096213,-500.0,0.00052327,120]
[356928892,1743435096223,-500.0,0.00052327,120]
[356928893,1743435096233,-500.0,0.00052327,120]
[356928894,1743435096243,-884.13,0.00052327,120]
[356928895,1743435096253,-709.47,0.00052327,120]
[356928896,1743435096263,-575.2,0.00052327,120]
[356928897,1743435096272,-412.88,0.00052327,120]
[356928898,1743435096282,-657.12,0.00052327,120]
[356928899,1743435096292,-1709.56,0.00052327,120]
[356928900,1743435096301,-966.72,0.00052327,120]
[356928901,1743435096312,-674.91,0.00052327,120]
[356928902,1743435096322,-500.0,0.00052327,120]
[356928903,1743435096332,-679.34,0.00052327,120]
[356928904,1743435096342,-500.0,0.00052327,120]
[356928905,1743435096351,-589.96,0.00052327,120]
[356928906,1743435096361,-553.96,0.00052327,120]
[356928907,1743435096371,-1077.21,0.00052327,120]
[356928908,1743435096381,-982.57,0.00052327,120]
[356928909,1743435096391,-1735.57,0.00052327,100]
[356928910,1743435096401,-500.0,0.00052327,120]
[356928911,1743435096410,-1542.89,0.00052327,120]
[356928912,1743435096420,-639.37,0.00052327,120]
[356928913,1743435096430,-500.0,0.00052327,120]
[356928914,1743435096441,-5724.5,0.00052327,7]
[356928915,1743435096452,-3112.45,0.00052327,120]
[356928916,1743435096462,-500.0,0.00052327,120]
[356928917,1743435096472,-538.3,0.00052327,120]
[356928918,1743435096482,-500.0,0.00052327,120]
[356928919,1743435096493,-652.93,0.00052327,120]
[356928920,1743435096503,-1485.04,0.00052327,120]
[356928921,1743435096514,-726.02,0.00052327,120]
[356928922,1743435096524,-2237.04,0.00052327,120]
[356928923,1743435096535,-1396.37,0.00052327,120]
[356928924,1743435096545,-521.46,0.00052327,120]
[356928925,1743435096555,-500.0,0.00052327,120]
[356928926,1743435096565,-1608.33,0.00052327,120]
[356928927,1743435096575,-2168.3,0.00052327,120]
[356928928,1743435096585,-674.92,0.00052327,120]
[356928929,1743435096595,-335.0,0.00052328,120]
[356928930,1743435096605,-524.1,0.00052328,120]
[356928931,1743435096615,-773.53514334,0.00052328,120]
[356928932,1743435096970,-500.0,0.00047943,120]
[356928933,1743435097112,-424.24485666,0.00052328,120]
[356928934,1743435097124,-624.71,0.00052328,120]
[356928935,1743435097135,-1078.91,0.00052328,120]
[356928936,1743435097145,-1135.55,0.00052328,120]
[356928937,1743435097156,-571.78,0.00052328,120]
[356928938,1743435097167,-1494.51,0.00052328,120]
[356928939,1743435097177,-724.15,0.00052328,120]
[356928940,1743435097186,-573.06,0.00052328,120]
[356928941,1743435097197,-500.0,0.00052349,120]
[356928942,1743435097208,-3094.7,0.00052349,120]
[356928943,1743435097218,-1000.0,0.00052356,120]
[356928944,1743435097229,-472.54875591,0.000526,2]
[356928945,1743435097241,-1455.714,0.000526,2]
[356928946,1743435097274,-500.0,0.00048217,120]
[356928947,1743435097284,-1130.97,0.00049589,120]
[356928948,1743435097295,-500.0,0.00049589,120]
[356928949,1743435097306,-4463.06308358,0.000526,2]
[356928950,1743435097322,-500.0,0.00048217,120]
[356928951,1743435097333,-838.51701298,0.000526,2]
[356928952,1743435097655,-500.0,0.00046575,120]
[356928953,1743435097665,-500.0,0.00046575,120]
[356928954,1743435097675,-311.96123372,0.00046575,120]
[356928955,1743435097685,-500.0,0.00046575,2]
[356928956,1743435097695,-514.61607256,0.00046849,120]
[356928957,1743435097705,-500.0,0.00046849,120]
[356928958,1743435097714,-500.0,0.00047123,120]
[356928959,1743435097724,-545.29,0.00047671,120]
[356928960,1743435097734,-500.0,0.00047943,120]
[356928961,1743435097744,-535.56071891,0.00047943,120]
[356928962,1743435097755,-545.29,0.00047945,120]
[356928963,1743435097765,-500.0,0.00048217,120]
[356928964,1743435097774,-500.0,0.00048217,120]
[356928965,1743435097784,-512.9704233,0.00048217,120]
[356928966,1743435097795,-545.29,0.00048219,120]
[356928967,1743435097810,-171.70122134,0.00048491,120]
[356928968,1743435097820,-500.0,0.00048491,120]
[356928969,1743435097830,-500.0,0.00048491,120]
[356928970,1743435097839,-509.90157327,0.00048491,120]
[356928971,1743435097849,-545.29,0.00048493,120]
[356928972,1743435097859,-500.0,0.00048765,120]
[356928973,1743435097869,-500.0,0.00048765,120]
[356928974,1743435097879,-545.29,0.00048767,120]
[356928975,1743435097889,-500.0,0.00049039,120]
[356928976,1743435097898,-500.0,0.00049039,120]
[356928977,1743435097908,-545.29,0.00049041,120]
[356928978,1743435097917,-500.0,0.00049313,120]
[356928979,1743435097926,-500.0,0.00049313,120]
[356928980,1743435097935,-545.29,0.00049315,120]
[356928981,1743435097945,-500.0,0.00049587,120]
[356928982,1743435097954,-545.29,0.00049589,120]
[356928983,1743435097964,-500.0,0.00049861,120]
[356928984,1743435097974,-1130.97,0.00049863,120]
[356928985,1743435097983,-500.0,0.00049863,120]
[356928986,1743435097993,-545.29,0.00049863,120]
[356928987,1743435098002,-500.0,0.00050135,120]
[356928988,1743435098012,-1130.97,0.00050136,120]
[356928989,1743435098021,-500.0,0.00050136,120]
[356928990,1743435098032,-1130.97,0.0005041,120]
[356928991,1743435098041,-500.0,0.0005041,120]
[356928992,1743435098051,-500.0,0.00050684,120]
[356928993,1743435098063,-1130.97,0.00050684,120]
[356928994,1743435098072,-500.0,0.00050958,120]
[356928995,1743435098082,-1130.97,0.00050958,120]
[356928996,1743435098091,-375.35,0.00051232,120]
[356928997,1743435098101,-1130.97,0.00051232,120]
[356928998,1743435098111,-1130.97,0.00051506,120]
[356928999,1743435098121,-1130.97,0.0005178,120]
[356929000,1743435098131,-1130.97,0.00052054,120]
[356929001,1743435098140,-1130.97,0.00052328,120]
[356929002,1743435098150,-35508.27785963,0.000526,2]
[356929003,1743435098163,-17638.72486733,0.000526,2]
[356929004,1743435098173,-1302.27,0.000526,60]
[356929005,1743435098183,-500.0,0.00052601,31]
[356929006,1743435098192,-500.0,0.00052601,120]
[356929007,1743435098202,-698.6,0.00052601,120]
[356929008,1743435098212,-500.0,0.00052601,120]
[356929009,1743435098222,-558.98,0.00052601,120]
[356929010,1743435098232,-884.13,0.00052601,120]
[356929011,1743435098242,-709.47,0.00052601,120]
[356929012,1743435098251,-575.2,0.00052601,120]
[356929013,1743435098261,-657.12,0.00052601,120]
[356929014,1743435098271,-661.84478087,0.00052601,120]
[356929015,1743435098298,-500.0,0.00047397,120]
[356929016,1743435098309,-500.0,0.00049587,120]
[356929017,1743435098318,-500.0,0.00050409,120]
[356929018,1743435098328,-1047.71521913,0.00052601,120]
[356929019,1743435098338,-612.15112596,0.00052601,120]
[356929020,1743435098373,-500.0,0.00047671,120]
[356929021,1743435098383,-500.0,0.00049861,120]
[356929022,1743435098392,-545.29,0.00050136,120]
[356929023,1743435098402,-500.0,0.00050683,120]
[356929024,1743435098412,-354.56887404,0.00052601,120]
[356929025,1743435098421,-674.91,0.00052601,120]
[356929026,1743435098430,-500.0,0.00052601,120]
[356929027,1743435098442,-679.34,0.00052601,120]
[356929028,1743435098452,-500.0,0.00052601,120]
[356929029,1743435098462,-589.96,0.00052601,120]
[356929030,1743435098471,-553.96,0.00052601,120]
[356929031,1743435098481,-1077.21,0.00052601,120]
[356929032,1743435098492,-982.57,0.00052601,120]
[356929033,1743435098501,-1735.57,0.00052601,100]
[356929034,1743435098512,-500.0,0.00052601,120]
[356929035,1743435098522,-1542.89,0.00052601,120]
[356929036,1743435098532,-639.37,0.00052601,120]
[356929037,1743435098542,-500.0,0.00052601,120]
[356929038,1743435098551,-5724.5,0.00052601,7]
[356929039,1743435098567,-3112.45,0.00052601,120]
[356929040,1743435098577,-500.0,0.00052601,120]
[356929041,1743435098588,-538.3,0.00052601,120]
[356929042,1743435098598,-500.0,0.00052601,120]
[356929043,1743435098608,-652.93,0.00052601,120]
[356929044,1743435098618,-1485.04,0.00052601,120]
[356929045,1743435098629,-726.02,0.00052601,120]
[356929046,1743435098639,-2237.04,0.00052601,120]
[356929047,1743435098649,-1396.37,0.00052601,120]
[356929048,1743435098658,-521.46,0.00052601,120]
[356929049,1743435098668,-553.0,0.00052601,120]
[356929050,1743435098677,-1608.33,0.00052601,120]
[356929051,1743435098688,-2168.3,0.00052601,120]
[356929052,1743435098698,-674.92,0.00052601,120]
[356929053,1743435098709,-524.1,0.00052602,120]
[356929054,1743435098719,-1197.78,0.00052602,120]
[356929055,1743435098730,-624.71,0.00052602,120]
[356929056,1743435098740,-1078.91,0.00052602,120]
[356929057,1743435098750,-1135.55,0.00052602,120]
[356929058,1743435098759,-571.78,0.00052602,120]
[356929059,1743435098769,-1494.51,0.00052602,120]
[356929060,1743435098779,-724.15,0.00052602,120]
[356929061,1743435098788,-573.06,0.00052602,120]
[356929062,1743435098799,-1130.97,0.00052602,120]
[356929063,1743435098814,-546.7,0.00052623,120]
[356929064,1743435098824,-3094.7,0.00052623,120]
[356929065,1743435098835,-500.0,0.00052701,60]
[356929066,1743435098845,-500.0,0.00052875,120]
[356929067,1743435098855,-698.6,0.00052875,120]
[356929068,1743435098866,-500.0,0.00052875,120]
[356929069,1743435098876,-884.13,0.00052875,120]
[356929070,1743435098886,-709.47,0.00052875,120]
[356929071,1743435098896,-575.2,0.00052875,120]
[356929072,1743435098906,-657.12,0.00052875,120]
[356929073,1743435098916,-1709.56,0.00052875,120]
[356929074,1743435098925,-966.72,0.00052875,120]
[356929075,1743435098935,-674.91,0.00052875,120]
[356929076,1743435098945,-500.0,0.00052875,120]
[356929077,1743435098956,-679.34,0.00052875,120]
[356929078,1743435098965,-390.64,0.00052875,120]
[356929079,1743435098974,-589.96,0.00052875,120]
[356929080,1743435098983,-553.96,0.00052875,120]
[356929081,1743435098994,-1077.21,0.00052875,120]
[356929082,1743435099004,-982.57,0.00052875,120]
[356929083,1743435099015,-1735.57,0.00052875,100]
[356929084,1743435099024,-500.0,0.00052875,120]
[356929085,1743435099034,-1542.89,0.00052875,120]
[356929086,1743435099044,-639.37,0.00052875,120]
[356929087,1743435099056,-250.65,0.00052875,120]
[356929088,1743435099066,-5724.5,0.00052875,7]
[356929089,1743435099075,-3112.45,0.00052875,120]
[356929090,1743435099085,-500.0,0.00052875,120]
[356929091,1743435099094,-538.3,0.00052875,120]
[356929092,1743435099104,-580.32,0.00052875,120]
[356929093,1743435099113,-652.93,0.00052875,120]
[356929094,1743435099122,-1485.04,0.00052875,120]
[356929095,1743435099133,-726.02,0.00052875,120]
[356929096,1743435099142,-2237.04,0.00052875,120]
[356929097,1743435099152,-1396.37,0.00052875,120]
[356929098,1743435099162,-521.46,0.00052875,120]
[356929099,1743435099172,-1608.33,0.00052875,120]
[356929100,1743435099182,-2168.3,0.00052875,120]
[356929101,1743435099191,-674.92,0.00052875,120]
[356929102,1743435099202,-524.22664925,0.00052876,120]
[356929103,1743435099211,-1198.01079663,0.00052876,120]
[356929104,1743435099222,-624.81816061,0.00052876,120]
[356929105,1743435099231,-1078.94093318,0.00052876,120]
[356929106,1743435099241,-1135.55884052,0.00052876,120]
[356929107,1743435099250,-571.80449142,0.00052876,120]
[356929108,1743435099260,-1494.6,0.00052876,120]
[356929109,1743435099269,-724.33673619,0.00052876,120]
[356929110,1743435099278,-573.29,0.00052876,120]
[356929111,1743435099287,-3094.7,0.00052896,120]
[356929112,1743435099297,-19937.42,0.00052924,8]
[356929113,1743435099308,-400.0,0.0005297,7]
[356929114,1743435099317,-700.0,0.0005297,7]
[356929115,1743435099327,-393.0,0.00052998,30]
[356929116,1743435099336,-406.06,0.00053,20]
[356929117,1743435099345,-1416.29846924,0.00053,6]
[356929118,1743435099355,-512.54,0.00053064,120]
[356929119,1743435099364,-1026.8,0.00053148,120]
[356929120,1743435099374,-500.0,0.00053149,34]
[356929121,1743435099384,-500.0,0.00053149,120]
[356929122,1743435099393,-698.6,0.00053149,120]
[356929123,1743435099403,-500.0,0.00053149,120]
[356929124,1743435099412,-884.13,0.00053149,120]
[356929125,1743435099422,-709.47,0.00053149,120]
[356929126,1743435099431,-575.2,0.00053149,120]
[356929127,1743435099444,-657.12,0.00053149,120]
[356929128,1743435099454,-1709.56,0.00053149,120]
[356929129,1743435099463,-966.72,0.00053149,120]
[356929130,1743435099472,-674.91,0.00053149,120]
[356929131,1743435099482,-500.0,0.00053149,120]
[356929132,1743435099492,-679.34,0.00053149,120]
[356929133,1743435099501,-589.96,0.00053149,120]
[356929134,1743435099511,-553.96,0.00053149,120]
[356929135,1743435099521,-1077.21,0.00053149,120]
[356929136,1743435099531,-982.57,0.00053149,120]
[356929137,1743435099542,-1735.57,0.00053149,100]
[356929138,1743435099551,-500.0,0.00053149,120]
[356929139,1743435099563,-1542.89,0.00053149,120]
[356929140,1743435099572,-639.37,0.00053149,120]
[356929141,1743435099582,-5724.5,0.00053149,7]
[356929142,1743435099592,-3112.45,0.00053149,120]
[356929143,1743435099602,-476.33390953,0.00053149,120]
[356929144,1743435099612,-538.3,0.00053149,120]
[356929145,1743435099621,-652.93,0.00053149,120]
[356929146,1743435099631,-1485.04,0.00053149,120]
[356929147,1743435099641,-726.02,0.00053149,120]
[356929148,1743435099650,-2237.04,0.00053149,120]
[356929149,1743435099660,-1396.37,0.00053149,120]
[356929150,1743435099670,-521.46,0.00053149,120]
[356929151,1743435099680,-1608.33,0.00053149,120]
[356929152,1743435099689,-2168.3,0.00053149,120]
[356929153,1743435099699,-674.92,0.00053149,120]
[356929154,1743435099709,-3094.7,0.0005317,120]
[356929155,1743435099719,-164.01,0.00053171,2]
[356929156,1743435099730,-500.0,0.00053208,60]
[356929157,1743435099740,-177.79419072,0.00053224,51]
[356929158,1743435099749,-151.0,0.00053292,120]
[356929159,1743435099759,-500.0,0.00053423,120]
[356929160,1743435099770,-698.6,0.00053423,120]
[356929161,1743435099780,-500.0,0.00053423,120]
[356929162,1743435099790,-884.13,0.00053423,120]
[356929163,1743435099799,-709.47,0.00053423,120]
[356929164,1743435099811,-575.2,0.00053423,120]
[356929165,1743435099820,-657.12,0.00053423,120]
[356929166,1743435099830,-1709.56,0.00053423,120]
[356929167,1743435099839,-966.72,0.00053423,120]
[356929168,1743435099849,-674.91,0.00053423,120]
[356929169,1743435099859,-500.0,0.00053423,120]
[356929170,1743435099870,-679.34,0.00053423,120]
[356929171,1743435099880,-589.96,0.00053423,120]
[356929172,1743435099890,-553.96,0.00053423,120]
[356929173,1743435099899,-1077.21,0.00053423,120]
[356929174,1743435099909,-982.57,0.00053423,120]
[356929175,1743435099920,-1735.57,0.00053423,100]
[356929176,1743435099930,-500.0,0.00053423,120]
[356929177,1743435099940,-1542.89,0.00053423,120]
[356929178,1743435099950,-639.37,0.00053423,120]
[356929179,1743435099960,-5724.5,0.00053423,7]
[356929180,1743435099970,-3112.45,0.00053423,120]
[356929181,1743435099980,-538.3,0.00053423,120]
[356929182,1743435099989,-652.93,0.00053423,120]
[356929183,1743435099999,-1485.04,0.00053423,120]
[356929184,1743435100009,-726.02,0.00053423,120]
[356929185,1743435100019,-2237.04,0.00053423,120]
[356929186,1743435100030,-1396.37,0.00053423,120]
[356929187,1743435100040,-521.46,0.00053423,120]
[356929188,1743435100051,-1608.33,0.00053423,120]
[356929189,1743435100061,-2168.3,0.00053423,120]
[356929190,1743435100071,-674.92,0.00053423,120]
[356929191,1743435100080,-3094.7,0.00053444,120]
[356929192,1743435100092,-1075.40013964,0.0005345,10]
[356929193,1743435100103,-393.0,0.00053539,30]
[356929194,1743435100112,-232.81226,0.000536,120]
[356929195,1743435100253,-500.0,0.00053697,37]
[356929196,1743435100265,-500.0,0.00053697,120]
[356929197,1743435100275,-698.6,0.00053697,120]
[356929198,1743435100285,-500.0,0.00053697,120]
[356929199,1743435100296,-884.13,0.00053697,120]
[356929200,1743435100307,-709.47,0.00053697,120]
[356929201,1743435100317,-575.2,0.00053697,120]
[356929202,1743435100327,-657.12,0.00053697,120]
[356929203,1743435100339,-1709.56,0.00053697,120]
[356929204,1743435100348,-966.72,0.00053697,120]
[356929205,1743435100357,-674.91,0.00053697,120]
[356929206,1743435100367,-500.0,0.00053697,120]
[356929207,1743435100377,-679.34,0.00053697,120]
[356929208,1743435100386,-589.96,0.00053697,120]
[356929209,1743435100396,-553.96,0.00053697,120]
[356929210,1743435100406,-1077.21,0.00053697,120]
[356929211,1743435100416,-982.57,0.00053697,120]
[356929212,1743435100426,-1735.57,0.00053697,100]